bitfinex-derivatives/quotes_SOLF0:USTF0_20250105
["timestamp","ask_amount","ask_price","bid_price","bid_amount"]
[1736098777022,2.68,212.84,212.82,2.3499]
[1736098777722,10.1665913,212.85,212.82,2.3499]
[1736098777921,10.1665913,212.85,212.78,7.4865913]
[1736098778121,10.1665913,212.85,212.81,2.35]
[1736098778628,10.1665913,212.85,212.76,51.88942899]
[1736098778629,7.4865913,212.83,212.76,25.94471449]
[1736098778928,9.8364913,212.83,212.78,2.3504]
[1736098779229,7.4865913,212.83,212.78,2.3504]
[1736098779422,7.4865913,212.83,212.76,25.94471449]
[1736098779423,7.4865913,212.81,212.76,25.94471449]
[1736098779623,7.4865913,212.79,212.77,4.80626866]
[1736098780323,7.4865913,212.79,212.74,6.85231176]
[1736098780522,9.8368913,212.79,212.75,2.3507]
[1736098782530,2.68,212.8,212.76,2.3506]
[1736098782727,10.1665913,212.8,212.76,2.3506]
[1736098783225,2.68,212.8,212.76,2.3506]
[1736098785432,5.0302,212.8,212.76,2.3506]
[1736098792136,2.3498,212.83,212.79,2.3503]
[1736098792336,2.68,212.82,212.79,2.3503]
[1736098792532,7.4865913,212.89,212.8,7.4865913]
[1736098792731,5.0293,212.88,212.84,2.3497]
[1736098793426,5.0293,212.88,212.82,2.3498]
[1736098793624,2.3493,212.88,212.82,2.3498]
[1736098793825,2.68,212.87,212.82,2.3498]
[1736098794834,10.1665913,212.87,212.82,2.3498]
[1736098795639,10.1665913,212.87,212.82,2.3499]
[1736098800441,10.1665913,212.87,212.8,7.4865913]
[1736098800641,10.1665913,212.87,212.82,2.3499]
[1736098802037,7.4865913,212.85,212.82,2.3499]
[1736098802944,7.4865913,212.83,212.79,6.48617862]
[1736098803142,7.4865913,212.81,212.79,6.48617862]
[1736098803748,7.4865913,212.81,212.75,33.43130579]
[1736098803938,7.4865913,212.81,212.77,2.3504]
[1736098804952,9.8366913,212.81,212.77,2.3504]
[1736098809660,9.8368913,212.79,212.74,112.95358665]
[1736098810256,9.8368913,212.79,212.75,6.48617862]
[1736098810461,9.8368913,212.79,212.75,8.83687862]
[1736098810761,7.4865913,212.79,212.75,6.48617862]
[1736098811458,7.4865913,212.79,212.74,6.85231176]
[1736098812561,7.4865913,212.79,212.76,2.3506]
[1736098813560,2.3502,212.8,212.76,2.3506]
[1736098813753,9.8367913,212.8,212.76,2.3506]
[1736098817055,9.8367913,212.8,212.75,2.3507]
[1736098819062,9.8367913,212.8,212.74,6.85231176]
[1736098819263,9.8367913,212.8,212.76,2.3506]
[1736098820965,7.4865913,212.8,212.76,2.3506]
[1736098821963,7.4865913,212.8,212.77,2.3505]
[1736098822165,10.1465913,212.82,212.75,7.4865913]
[1736098822561,10.1465913,212.82,212.74,14.33890306]
[1736098822962,2.3501,212.81,212.76,2.3506]
[1736098823464,2.66,212.8,212.76,2.3506]
[1736098824665,10.1465913,212.8,212.76,2.3506]
[1736098825067,12.4967913,212.8,212.76,2.3506]
[1736098825264,10.1465913,212.8,212.75,2.3507]
[1736098825666,12.4967913,212.8,212.75,2.3507]
[1736098827467,2.3504,212.78,212.74,9.20311176]
[1736098827770,9.8369913,212.78,212.74,9.20311176]
[1736098828168,7.4865913,212.78,212.74,9.20311176]
[1736098828763,2.3503,212.79,212.74,9.20311176]
[1736098828969,12.4967913,212.8,212.75,2.3506]
[1736098829163,10.1465913,212.8,212.74,6.85231176]
[1736098829966,10.1465913,212.8,212.77,2.3505]
[1736098830162,2.66,212.8,212.74,14.33890306]
[1736098831170,2.66,212.8,212.75,11.29229164]
[1736098831969,2.66,212.8,212.76,4.80611302]
[1736098832464,2.66,212.8,212.78,2.3504]
[1736098832671,2.66,212.81,212.76,12.29270432]
[1736098832869,2.8011,212.87,212.78,7.4865913]
[1736098833073,2.66,212.86,212.82,2.3498]
[1736098834568,2.66,212.86,212.79,6.48617862]
[1736098834569,7.4865913,212.85,212.81,2.35]
[1736098835568,7.4865913,212.85,212.79,25.94471449]
[1736098835772,2.66,212.86,212.79,25.94471449]
[1736098835773,7.4865913,212.83,212.79,25.94471449]
[1736098835966,7.4865913,212.83,212.78,25.94471449]
[1736098837070,7.4865913,212.83,212.76,6.48617862]
[1736098837471,2.35,212.82,212.77,2.3504]
[1736098837672,2.66,212.81,212.77,2.3504]
[1736098841975,2.66,212.81,212.77,7.4865913]
[1736098843071,2.66,212.81,212.79,2.3502]
[1736098844163,2.3501,212.81,212.77,8.83667862]
[1736098844767,2.3501,212.81,212.77,6.48617862]
[1736098844969,2.3501,212.81,212.78,2.3504]
[1736098847375,5.01,212.82,212.78,2.3504]
[1736098854575,2.66,212.82,212.77,6.48617862]
[1736098854782,2.66,212.82,212.79,2.3503]
[1736098856976,2.66,212.82,212.77,25.94471449]
[1736098856977,2.66,212.82,212.78,2.3504]
[1736098860679,2.35,212.82,212.78,2.3504]
[1736098860875,5.01,212.82,212.78,2.3504]
[1736098861083,5.01,212.82,212.78,8.83657862]
[1736098861776,5.01,212.82,212.78,2.3504]
[1736098862985,2.66,212.82,212.79,2.3502]
[1736098864588,2.66,212.82,212.78,6.48617862]
[1736098864788,5.01,212.82,212.78,8.83657862]
[1736098865184,2.66,212.82,212.78,8.83657862]
[1736098866087,2.66,212.82,212.79,4.81462091]
[1736098866882,2.66,212.82,212.78,8.83657862]
[1736098868284,2.66,212.82,212.78,6.48617862]
[1736098868486,2.66,212.82,212.79,2.3503]
[1736098869084,2.66,212.82,212.79,7.16562136]
[1736098869684,2.66,212.82,212.79,8.83647862]
[1736098870583,2.66,212.82,212.79,2.3503]
[1736098871093,3.52670734,212.9,212.78,25.94471449]
[1736098871388,7.4865913,212.85,212.78,25.94471449]
[1736098871588,2.64,212.84,212.8,7.16766141]
[1736098872386,2.64,212.84,212.8,8.83627862]
[1736098873194,2.64,212.84,212.81,4.81655655]
[1736098874089,2.64,212.84,212.82,4.81655655]
[1736098875092,2.64,212.84,212.81,6.48617862]
[1736098877692,2.64,212.84,212.82,4.81366523]
[1736098878793,2.64,212.84,212.81,6.48617862]
[1736098879691,2.64,212.84,212.8,28.29481449]
[1736098879890,12.4762913,212.84,212.8,25.94471449]
[1736098880487,12.4762913,212.84,212.8,6.48617862]
[1736098881293,7.4865913,212.82,212.8,6.48617862]
[1736098882391,2.3501,212.81,212.78,6.48617862]
[1736098882592,7.4865913,212.8,212.78,6.48617862]
[1736098882798,7.4865913,212.8,212.74,84.35787194]
[1736098883096,7.4865913,212.78,212.74,6.85283499]
[1736098883296,7.4865913,212.78,212.74,9.20353499]
[1736098883996,7.4865913,212.78,212.75,11.35895831]
[1736098884992,7.4865913,212.78,212.75,6.5424937]
[1736098886193,9.8369913,212.78,212.74,35.3735098]
[1736098887095,9.8369913,212.78,212.75,4.81426065]
[1736098888003,9.8369913,212.78,212.74,35.3735098]
[1736098889004,9.8369913,212.78,212.74,15.74602869]
[1736098890500,7.4865913,212.78,212.74,15.74602869]
[1736098892905,2.64,212.79,212.74,13.39532869]
[1736098893611,2.64,212.79,212.76,2.3505]
[1736098894313,2.64,212.79,212.77,4.80991917]
[1736098895013,2.64,212.79,212.76,28.52047481]
[1736098895809,2.64,212.79,212.76,8.8929937]
[1736098896711,2.64,212.79,212.77,4.80931068]
[1736098897714,2.64,212.79,212.76,28.52047481]
[1736098898516,2.64,212.79,212.76,8.8929937]
[1736098902215,2.64,212.79,212.76,2.3505]
[1736098902922,2.64,212.79,212.76,8.8929937]
[1736098905222,9.8369913,212.78,212.76,6.5424937]
[1736098906719,9.8369913,212.78,212.74,9.20353499]
[1736098910620,9.8368913,212.8,212.74,6.85283499]
[1736098910816,2.62,212.8,212.75,7.4865913]
[1736098911223,2.62,212.8,212.77,2.3505]
[1736098911625,2.62,212.8,212.75,7.4865913]
[1736098912227,2.62,212.8,212.76,4.80784928]
[1736098912428,2.62,212.8,212.76,7.15844928]
[1736098912629,2.62,212.8,212.76,8.8930937]
[1736098915130,4.9702,212.8,212.77,4.81089873]
[1736098915931,4.9702,212.8,212.76,28.52057481]
[1736098917031,12.4567913,212.8,212.76,28.52057481]
[1736098918031,12.4567913,212.8,212.77,4.81288534]
[1736098918934,12.4567913,212.8,212.76,8.8930937]
[1736098920932,7.4865913,212.78,212.76,6.5424937]
[1736098921129,9.8370913,212.78,212.76,6.5424937]
[1736098922036,9.8370913,212.78,212.74,15.74612869]
[1736098923037,9.8370913,212.78,212.74,9.20363499]
[1736098924037,9.8370913,212.78,212.74,15.74612869]
[1736098925436,2.3505,212.77,212.74,15.74612869]
[1736098925734,7.4865913,212.78,212.74,15.74612869]
[1736098926637,7.4865913,212.78,212.74,9.20363499]
[1736098927530,9.8369913,212.78,212.74,9.20363499]
[1736098930742,7.4865913,212.76,212.74,9.20363499]
[1736098931940,7.4865913,212.78,212.75,2.3507]
[1736098933739,7.4865913,212.8,212.75,2.3507]
[1736098933941,2.62,212.79,212.76,2.3506]
[1736098935847,2.62,212.79,212.75,6.5424937]
[1736098936046,2.62,212.79,212.75,8.8931937]
[1736098936343,7.4865913,212.78,212.75,8.8931937]
[1736098937850,7.4865913,212.78,212.75,6.5424937]
[1736098938149,7.4865913,212.76,212.75,6.5424937]
[1736098939051,7.4865913,212.76,212.72,11.8153937]
[1736098939451,7.4865913,212.76,212.73,2.3509]
[1736098947161,7.4865913,212.76,212.74,2.3508]
[1736098949066,9.8369913,212.78,212.74,2.3508]
[1736098953575,9.8369913,212.78,212.73,6.5424937]
[1736098953775,9.8369913,212.78,212.73,8.8933937]
[1736098954175,9.8369913,212.78,212.74,4.81850373]
[1736098955271,9.8369913,212.78,212.73,28.52087481]
[1736098956177,9.8369913,212.78,212.74,6.5424937]
[1736098959476,9.8369913,212.78,212.73,21.97838111]
[1736098959477,9.8369913,212.78,212.73,28.52087481]
[1736098960379,9.8369913,212.78,212.74,4.8180257]
[1736098961176,2.3506,212.77,212.74,4.8180257]
[1736098961377,7.4865913,212.76,212.73,6.5424937]
[1736098961679,2.62,212.79,212.73,6.5424937]
[1736098961879,7.4865913,212.74,212.73,6.5424937]
[1736098962075,10.1065913,212.74,212.73,6.5424937]
[1736098962471,12.4573913,212.74,212.7,6.5424937]
[1736098962677,7.4865913,212.72,212.7,6.5424937]
[1736098963079,9.8376913,212.72,212.7,6.5424937]
[1736098963279,7.4865913,212.72,212.7,6.5424937]
[1736098963672,7.4865913,212.72,212.69,6.5424937]
[1736098963673,2.3512,212.71,212.69,6.5424937]
[1736098963876,7.4865913,212.7,212.69,6.5424937]
[1736098964781,7.4865913,212.7,212.68,6.85499779]
[1736098965281,10.1065913,212.7,212.68,6.85499779]
[1736098966177,12.4578913,212.7,212.68,6.85499779]
[1736098966382,12.4578913,212.7,212.67,6.5424937]
[1736098966584,10.1065913,212.7,212.66,6.5424937]
[1736098967081,10.1065913,212.7,212.66,8.8941937]
[1736098967480,2.62,212.7,212.66,8.8941937]
[1736098967675,10.1065913,212.7,212.66,8.8941937]
[1736098967982,10.1065913,212.7,212.66,2.3517]
[1736098969680,10.1065913,212.7,212.65,26.16997481]
[1736098969885,12.4578913,212.7,212.65,26.16997481]
[1736098970080,12.4578913,212.7,212.65,6.5424937]
[1736098970786,12.4578913,212.7,212.64,8.8942937]
[1736098971586,12.4578913,212.7,212.64,2.3518]
[1736098972381,2.3514,212.69,212.64,2.3518]
[1736098973077,2.3514,212.69,212.63,26.16997481]
[1736098973078,2.62,212.7,212.63,33.65656611]
[1736098973479,7.4865913,212.72,212.65,7.4865913]
[1736098973683,2.62,212.71,212.65,7.4865913]
[1736098973980,2.62,212.71,212.65,14.029085]
[1736098974486,2.62,212.71,212.68,2.3515]
[1736098979891,2.62,212.71,212.66,26.16997481]
[1736098980092,2.62,212.71,212.69,2.3514]
[1736098990599,2.62,212.71,212.66,6.5424937]
[1736098990894,2.62,212.71,212.7,2.3513]
[1736099003199,10.1065913,212.71,212.7,2.3513]
[1736099011705,2.62,212.71,212.7,2.3513]
[1736099015213,10.1065913,212.71,212.7,2.3513]
[1736099019721,2.3506,212.76,212.72,2.351]
[1736099019916,7.4865913,212.75,212.7,4.81870324]
[1736099020109,10.1065913,212.75,212.7,4.81870324]
[1736099020715,10.1065913,212.75,212.71,11.36119694]
[1736099020911,7.4865913,212.75,212.71,11.36119694]
[1736099021121,2.62,212.74,212.72,2.351]
[1736099021616,2.62,212.74,212.72,13.71219694]
[1736099022620,2.62,212.74,212.72,2.351]
[1736099025224,2.62,212.74,212.71,8.8936937]
[1736099025426,2.62,212.74,212.71,2.3512]
[1736099025625,7.4865913,212.73,212.71,2.3512]
[1736099026926,2.62,212.74,212.71,2.3512]
[1736099027128,2.62,212.74,212.7,6.5424937]
[1736099027129,7.4865913,212.73,212.72,2.351]
[1736099028328,2.62,212.74,212.72,2.351]
[1736099029329,3.52782684,212.82,212.71,26.16997481]
[1736099029527,7.4865913,212.77,212.75,2.3507]
[1736099029726,7.4865913,212.79,212.71,33.65656611]
[1736099029927,2.62,212.78,212.71,33.65656611]
[1736099030625,2.62,212.78,212.76,2.3506]
[1736099033834,10.1065913,212.78,212.72,26.16997481]
[1736099034034,7.4865913,212.75,212.72,26.16997481]
[1736099034531,7.4865913,212.77,212.74,2.3508]
[1736099035337,10.1065913,212.8,212.72,14.029085]
[1736099035633,2.845,212.88,212.76,7.4865913]
[1736099035828,2.62,212.82,212.79,2.3503]
[1736099036232,7.4865913,212.83,212.76,7.4865913]
[1736099036429,10.1065913,212.83,212.8,2.3501]
[1736099036627,2.62,212.83,212.78,7.4865913]
[1736099037040,7.4865913,212.85,212.78,7.4865913]
[1736099037238,90.35848112,212.84,212.78,7.4865913]
[1736099038137,90.35848112,212.84,212.8,2.3501]
[1736099038337,90.35848112,212.84,212.78,7.4865913]
[1736099039041,2.62,212.84,212.78,7.4865913]
[1736099039541,2.62,212.84,212.81,2.35]
[1736099040335,7.4865913,212.83,212.81,2.35]
[1736099040743,7.4865913,212.83,212.77,9.3970937]
[1736099040933,7.4865913,212.81,212.77,11.7474937]
[1736099041642,7.4865913,212.81,212.77,5.205]
[1736099041941,7.4865913,212.81,212.78,2.3503]
[1736099045542,10.1065913,212.81,212.78,2.3503]
[1736099048646,2.62,212.81,212.79,2.3503]
[1736099056145,7.4865913,212.83,212.77,2.8546]
[1736099056352,2.62,212.82,212.8,2.3502]
[1736099060750,2.62,212.82,212.77,36.51116611]
[1736099060950,2.62,212.82,212.81,2.3501]
[1736099061453,2.62,212.82,212.8,2.3501]
[1736099065053,2.62,212.82,212.81,2.3501]
[1736099070761,87.72822349,212.87,212.8,7.4865913]
[1736099070950,87.72822349,212.87,212.79,26.16997481]
[1736099070951,7.4865913,212.83,212.79,26.16997481]
[1736099071361,7.4865913,212.85,212.82,6.5424937]
[1736099071960,2.62,212.84,212.82,6.5424937]
[1736099072156,2.62,212.84,212.81,28.51997481]
[1736099072960,2.62,212.84,212.81,8.8924937]
[1736099074662,2.62,212.84,212.81,6.5424937]
[1736099074663,2.3498,212.83,212.81,6.5424937]
[1736099075262,4.9697,212.84,212.8,6.5424937]
[1736099076054,4.9697,212.84,212.8,8.8925937]
[1736099076951,12.4562913,212.84,212.8,8.8925937]
[1736099078261,10.1065913,212.84,212.8,8.8925937]
[1736099078461,10.1065913,212.84,212.8,2.3501]
[1736099082063,10.1065913,212.84,212.79,86.69608122]
[1736099082363,10.1065913,212.84,212.81,2.35]
[1736099082865,10.1065913,212.84,212.79,80.15358752]
[1736099083064,10.1065913,212.84,212.8,2.3502]
[1736099083263,2.3499,212.83,212.79,86.69608122]
[1736099083458,10.1065913,212.84,212.79,86.69608122]
[1736099083664,10.1065913,212.84,212.79,89.04628122]
[1736099084062,10.1065913,212.84,212.79,82.50378752]
[1736099084260,12.4562913,212.84,212.79,82.50378752]
[1736099084864,10.1065913,212.84,212.79,82.50378752]
[1736099085074,2.3498,212.83,212.79,82.50378752]
[1736099085866,2.3498,212.83,212.8,4.80723628]
[1736099086868,2.3498,212.83,212.79,108.67376233]
[1736099088765,2.3498,212.83,212.8,4.80751248]
[1736099089068,2.62,212.84,212.8,4.80751248]
[1736099089271,4.9697,212.84,212.8,7.15761248]
[1736099089870,4.9697,212.84,212.8,2.3501]
[1736099090671,4.9697,212.84,212.8,8.8925937]
[1736099094873,2.62,212.84,212.8,8.8925937]
[1736099095072,2.62,212.83,212.81,2.35]
[1736099095475,87.72822349,212.87,212.8,6.5424937]
[1736099095672,87.72822349,212.87,212.82,12.29395994]
[1736099095973,90.34822349,212.87,212.82,12.29395994]
[1736099096567,90.34822349,212.87,212.85,2.3495]
[1736099097478,90.34822349,212.87,212.85,8.8919937]
[1736099098275,87.72822349,212.87,212.85,8.8919937]
[1736099098675,87.72822349,212.87,212.85,2.3495]
[1736099100666,7.4865913,212.86,212.84,2.3497]
[1736099100975,7.4865913,212.86,212.83,26.16997481]
[1736099101376,9.8361913,212.86,212.82,2.3499]
[1736099101670,7.4865913,212.86,212.81,26.16997481]
[1736099101874,9.8363913,212.84,212.81,26.16997481]
[1736099102069,2.62,212.83,212.81,26.16997481]
[1736099102277,2.62,212.83,212.8,6.5424937]
[1736099102473,7.4865913,212.82,212.8,6.5424937]
[1736099102979,9.8365913,212.82,212.8,6.5424937]
[1736099103372,9.8365913,212.82,212.78,13.3947264]
[1736099103973,9.8365913,212.82,212.78,6.5424937]
[1736099104177,2.62,212.83,212.77,6.5424937]
[1736099104178,7.4865913,212.8,212.77,6.5424937]
[1736099104372,7.4865913,212.78,212.77,6.5424937]
[1736099104678,12.4569913,212.78,212.77,4.2447937]
[1736099105075,12.4569913,212.78,212.77,1.9469937]
[1736099105282,2.3506,212.76,212.75,18.37957481]
[1736099105477,9.8371913,212.76,212.75,18.37957481]
[1736099106477,2.351,212.73,212.67,5.2509]
[1736099106677,7.4865913,212.71,212.67,5.2509]
[1736099107982,7.4865913,212.71,212.67,2.8994]
[1736099112285,2.62,212.72,212.67,2.8994]
[1736099113691,4.9711,212.72,212.67,2.8994]
[1736099114082,7.4865913,212.71,212.67,2.8994]
[1736099114686,7.4865913,212.69,212.64,2.3518]
[1736099115587,9.8379913,212.69,212.64,2.3518]
[1736099116287,7.4865913,212.67,212.62,90.86499556]
[1736099116487,10.1065913,212.67,212.62,88.51299556]
[1736099116789,10.1065913,212.67,212.62,87.06759556]
[1736099116986,2.3517,212.66,212.62,6.85665715]
[1736099117197,10.1065913,212.67,212.62,6.85665715]
[1736099117585,12.4581913,212.67,212.62,9.20875715]
[1736099120299,9.8383913,212.65,212.62,6.85665715]
[1736099121293,9.8383913,212.65,212.61,5.1849]
[1736099122185,7.4865913,212.63,212.52,71.32602554]
[1736099122389,7.4865913,212.61,212.53,7.4865913]
[1736099122895,7.4865913,212.61,212.53,12.22854782]
[1736099123393,7.4865913,212.61,212.57,2.3527]
[1736099124200,7.4865913,212.61,212.54,7.4865913]
[1736099125389,7.4865913,212.61,212.58,2.3526]
[1736099126594,7.4865913,212.61,212.59,2.3525]
[1736099128701,2.62,212.62,212.59,2.3525]
[1736099130891,7.4865913,212.61,212.59,2.3525]
[1736099132600,7.4865913,212.61,212.51,2.7917]
[1736099132796,7.4865913,212.59,212.53,7.4865913]
[1736099133397,7.4865913,212.59,212.56,2.3528]
[1736099134704,7.4865913,212.59,212.52,7.4865913]
[1736099134900,7.4865913,212.59,212.57,2.3526]
[1736099139411,7.4865913,212.59,212.51,2.7917]
[1736099139614,7.4865913,212.57,212.51,2.7917]
[1736099139810,2.62,212.56,212.51,2.7917]
[1736099140611,2.62,212.56,212.55,2.3529]
[1736099147420,9.8389913,212.61,212.56,2.3527]
[1736099147620,2.62,212.6,212.56,2.3527]
[1736099148120,7.4865913,212.59,212.56,2.3527]
[1736099152623,92.47254806,212.76,212.53,7.4865913]
[1736099152817,7.4865913,212.63,212.55,7.4865913]
[1736099153121,2.62,212.62,212.57,7.4865913]
[1736099153522,2.62,212.62,212.59,7.4865913]
[1736099154025,2.62,212.62,212.61,2.3523]
[1736099155425,7.4865913,212.67,212.63,2.352]
[1736099155625,2.62,212.66,212.63,2.352]
[1736099157526,2.62,212.66,212.61,2.3522]
[1736099157824,7.4865913,212.65,212.61,2.3522]
[1736099158431,9.8383913,212.65,212.61,2.3522]
[1736099161127,9.8383913,212.65,212.56,1.3936]
[1736099161331,2.352,212.64,212.6,2.3524]
[1736099161737,7.4865913,212.63,212.6,2.3524]
[1736099167732,7.4865913,212.61,212.52,6.53386763]
[1736099168036,7.4865913,212.58,212.52,6.53386763]
[1736099168236,7.4865913,212.58,212.54,2.353]
[1736099168237,2.62,212.57,212.54,2.353]
[1736099170125,2.62,212.57,212.51,2.7917]
[1736099170329,2.62,212.57,212.53,2.3531]
[1736099170836,2.62,212.57,212.51,2.7917]
[1736099171031,2.62,212.57,212.55,2.3529]
[1736099173346,2.62,212.58,212.56,7.4865913]
[1736099173544,2.62,212.59,212.56,7.4865913]
[1736099173736,2.62,212.6,212.58,7.4865913]
[1736099174039,2.62,212.62,212.6,2.3523]
[1736099175041,51.38,212.74,212.58,7.4865913]
[1736099175238,9.8383913,212.66,212.61,2.3522]
[1736099175435,2.62,212.65,212.61,2.3522]
[1736099178147,7.4865913,212.64,212.61,2.3522]
[1736099178438,7.4865913,212.62,212.59,1.3873]
[1736099180550,9.8387913,212.62,212.59,1.3873]
[1736099183249,7.4865913,212.62,212.59,1.3873]
[1736099184552,7.4865913,212.62,212.59,3.7398]
[1736099185750,2.3521,212.63,212.59,3.7398]
[1736099185951,9.8387913,212.62,212.59,1.3873]
[1736099188158,2.62,212.61,212.59,1.3873]
[1736099188555,2.62,212.61,212.58,2.3526]
[1736099189262,2.62,212.61,212.53,6.53386763]
[1736099189263,7.4865913,212.6,212.53,6.53386763]
[1736099189553,2.62,212.61,212.53,6.53386763]
[1736099189554,2.353,212.54,212.53,6.53386763]
[1736099189756,10.1065913,212.54,212.52,6.53386763]
[1736099190853,10.1065913,212.54,212.51,2.3534]
[1736099192056,10.1065913,212.54,212.49,2.9542]
[1736099192260,10.1065913,212.54,212.52,2.3533]
[1736099193256,10.1065913,212.54,212.51,2.3534]
[1736099193861,10.1065913,212.54,212.49,2.9542]
[1736099194159,7.4865913,212.54,212.52,2.3532]
[1736099194361,2.62,212.53,212.52,2.3532]
[1736099195253,2.62,212.53,212.51,2.3534]
[1736099195454,7.4865913,212.52,212.49,2.9542]
[1736099196053,7.4865913,212.52,212.5,2.3535]
[1736099196661,2.64,212.51,212.5,2.3535]
[1736099199165,78.06848806,212.59,212.49,10.4407913]
[1736099199356,10.1265913,212.58,212.53,2.353]
[1736099199551,2.64,212.57,212.53,2.353]
[1736099200558,7.4865913,212.56,212.53,2.353]
[1736099202161,7.4865913,212.56,212.49,2.9542]
[1736099202464,7.4865913,212.54,212.49,2.9542]
[1736099202860,7.4865913,212.54,212.51,2.3534]
[1736099203565,2.353,212.55,212.51,2.3534]
[1736099203764,7.4865913,212.54,212.51,2.3534]
[1736099205162,7.4865913,212.54,212.49,2.9542]
[1736099205370,9.8395913,212.54,212.5,2.3535]
[1736099205966,7.4865913,212.52,212.5,2.3535]
[1736099206167,2.64,212.51,212.5,2.3535]
[1736099211368,2.64,212.51,212.49,2.9542]
[1736099211369,2.64,212.51,212.49,5.3078]
[1736099211668,2.64,212.51,212.49,2.9542]
[1736099211871,2.64,212.51,212.5,2.3535]
[1736099213869,10.1265913,212.51,212.35,2.64]
[1736099214169,10.1265913,212.51,212.43,7.4865913]
[1736099214365,10.1265913,212.51,212.42,2.8022]
[1736099214563,10.1265913,212.51,212.43,7.4865913]
[1736099215072,2.64,212.51,212.45,7.4865913]
[1736099215264,10.1265913,212.51,212.43,7.4865913]
[1736099215665,12.4799913,212.51,212.47,2.3538]
[1736099218080,2.3536,212.49,212.44,73.69510458]
[1736099218273,7.4865913,212.47,212.44,71.34110458]
[1736099218470,4.9939,212.46,212.44,71.34110458]
[1736099218675,2.64,212.45,212.44,71.34110458]
[1736099219378,2.64,212.45,212.42,2.8022]
[1736099219678,9.8403913,212.48,212.42,5.1565]
[1736099219872,2.64,212.47,212.42,2.8022]
[1736099220276,7.4865913,212.46,212.42,5.1565]
[1736099220477,2.64,212.47,212.42,2.8022]
[1736099222080,2.64,212.47,212.42,5.1565]
[1736099222484,2.64,212.47,212.42,2.8022]
[1736099222980,2.64,212.47,212.44,2.3541]
[1736099223582,2.64,212.47,212.42,2.8022]
[1736099223782,2.64,212.47,212.45,2.354]
[1736099224279,78.06520711,212.6,212.43,7.4865913]
[1736099224479,7.4865913,212.52,212.43,7.4865913]
[1736099224784,2.64,212.51,212.43,7.4865913]
[1736099224981,2.64,212.51,212.48,2.3537]
[1736099225776,7.4865913,212.5,212.42,2.8022]
[1736099226187,7.4865913,212.48,212.42,2.8022]
[1736099226881,7.4865913,212.48,212.44,2.354]
[1736099227489,7.4865913,212.46,212.44,2.354]
[1736099227690,10.1465913,212.46,212.44,2.354]
[1736099227984,10.1465913,212.46,212.41,2.3545]
[1736099228191,7.4865913,212.44,212.41,2.3545]
[1736099228383,7.4865913,212.42,212.39,4.73499723]
[1736099228578,2.66,212.41,212.39,4.73499723]
[1736099229297,2.66,212.41,212.4,2.3546]
[1736099232294,2.66,212.44,212.43,2.3542]
[1736099233986,7.4865913,212.47,212.43,2.3542]
[1736099234296,2.66,212.46,212.41,7.4865913]
[1736099234495,2.66,212.46,212.43,7.4865913]
[1736099234887,2.66,212.46,212.45,2.354]
[1736099239192,2.66,212.46,212.43,2.3542]
[1736099239399,7.4865913,212.45,212.43,2.3542]
[1736099240097,7.4865913,212.45,212.42,2.3544]
[1736099244203,7.4865913,212.45,212.43,2.3542]
[1736099246200,2.66,212.44,212.43,2.3542]
[1736099246805,7.4865913,212.47,212.46,2.3539]
[1736099247004,2.66,212.47,212.46,2.3539]
[1736099252410,10.1465913,212.47,212.44,2.3541]
[1736099252809,7.4865913,212.45,212.44,2.3541]
[1736099254010,7.4865913,212.45,212.42,5.1491]
[1736099254214,7.4865913,212.45,212.39,4.73499723]
[1736099255306,7.4865913,212.45,212.41,2.3545]
[1736099255905,7.4865913,212.45,212.42,2.3543]
[1736099258511,7.4865913,212.43,212.42,2.3543]
[1736099258710,7.4865913,212.43,212.39,4.73499723]
[1736099258907,2.66,212.42,212.4,2.3545]
[1736099265320,7.4865913,212.41,212.35,6.53386763]
[1736099265616,7.4865913,212.39,212.35,6.53386763]
[1736099265814,7.4865913,212.39,212.34,73.79424713]
[1736099266317,9.8410913,212.41,212.34,73.79424713]
[1736099266517,7.4865913,212.39,212.34,73.79424713]
[1736099268420,7.4865913,212.39,212.37,2.3549]
[1736099268615,2.66,212.42,212.34,73.79424713]
[1736099268816,7.4865913,212.41,212.35,7.4865913]